Cogmind - Beta 14 @@@ ROGUE MODE // 2024.11.10 @ 17:08:01 Player: Shimmyarah Result: Self-destructed Performance ------------- Evolutions (2) 1000 Regions Visited (4) 800 Robots Destroyed (32) 160 Value Destroyed (347) 347 Prototype IDs (1) 20 Alien Tech Used (0) 0 Bonus (0) 0 TOTAL SCORE: 2327 Bonus ------- None Cogmind --------- Core Integrity 427/550 Matter 300/300 Energy 100/100 System Corruption 2% Temperature Cool (0) Movement Walking (120) Location -8/Materials Parts ------- > --- POWER (1) -------- (None) > --- PROPULSION (2) --- Carbon-fiber Leg > --- UTILITY (4) ------ Small Storage Unit Structural Scanner > --- WEAPON (4) ------- Mining Laser > --- INVENTORY (8) ---- Light Ion Engine Aluminum Leg Aluminum Leg Improved Terrain Scanner Seismic Detector Hardened Medium Armor Plating System Shield Light Assault Rifle Peak State ------------ > --- POWER ------------ Ion Engine > --- PROPULSION ------- Light Treads Carbon-fiber Leg > --- UTILITY ---------- Small Storage Unit Structural Scanner Signal Interpreter Improved Terrain Scanner > --- WEAPON ----------- Heavy EM Shotgun Light Assault Rifle Light Assault Rifle Assault Cannon > --- INVENTORY -------- Light Ion Engine Aluminum Leg Aluminum Leg Terrain Scan Processor Hardened Medium Armor Plating System Shield System Shield Mining Laser [Rating: 21] Favorites ----------- Power Ion Engine Engine Ion Engine Propulsion Light Treads Treads Light Treads Leg Carbon-fiber Leg Utility Small Storage Unit Device Improved Terrain Scanner Storage Small Storage Unit Processor Signal Interpreter Hackware System Shield Weapon Light Assault Rifle Energy Gun Medium Laser Ballistic Gun Light Assault Rifle Ballistic Cannon Assault Cannon Special Weapon Mining Laser Build | -11 -10 -10 -9 -8 ------- Run | Yrd Mat Min Mat Mat Slots Evolved 4 | . . . 2 2 Power . | . . . . . Propulsion . | . . . . . Utility 2 | . . . . 2 Weapon 2 | . . . 2 . Parts Attached 28 | 8 1 2 10 7 Power 2 | 1 . . 1 . Engine 2 | 1 . . 1 . Core . | . . . . . Reactor . | . . . . . Propulsion 3 | 2 . . . 1 Treads 2 | 2 . . . . Leg 1 | . . . . 1 Wheel . | . . . . . Hover . | . . . . . Flight . | . . . . . Utility 7 | 2 . . 2 3 Device 4 | 1 . . 1 2 Storage 1 | 1 . . . . Processor 1 | . . . 1 . Hackware 1 | . . . . 1 Protection . | . . . . . Artifact . | . . . . . Weapon 16 | 3 1 2 7 3 Energy Gun 6 | 2 . 1 2 1 Energy Cannon . | . . . . . Ballistic Gun 5 | 1 . 1 3 . Ballistic Cannon 1 | . . . . 1 Launcher . | . . . . . Special Weapon 4 | . 1 . 2 1 Impact Weapon . | . . . . . Slashing Weapon . | . . . . . Piercing Weapon . | . . . . . Special Melee Weapon . | . . . . . Unidentified Prototypes 1 | . . . . 1 Parts Lost 10 | . . . 3 7 Power 1 | . . . . 1 Propulsion 2 | . . . 1 1 Utility 2 | . . . . 2 Weapon 5 | . . . 2 3 Highest Loss Streak 7 | . . . 3 7 To Critical Strikes 1 | . . . 1 . Average Slot Usage (%) 91 | . 100 100 85 94 Engine 11 | . 14 14 11 8 Treads 17 | . 28 28 15 8 Leg 1 | . . . . 7 Device 12 | . 14 14 10 13 Storage 11 | . 14 14 11 9 Processor 2 | . . . . 7 Hackware 1 | . . . . 4 Energy Gun 11 | . 14 6 13 7 Ballistic Gun 13 | . . 10 14 16 Ballistic Cannon 1 | . . . . 5 Special Weapon 8 | . 14 10 8 4 Peak Build Rating 21 | 9 9 9 12 21 Average Rating 10 | 8 9 9 8 18 On Entrance 7 | . 9 9 9 8 Naked Turns . | . . . . . Heaviest Build 23 | 14 14 14 19 23 Greatest Support 40 | 40 40 40 40 20 Greatest Overweight (x) 2 | 2 . . . 1 Average Overweight (x) . | . . . . . Largest Inventory Capacity 8 | 8 8 8 8 8 Average Capacity 7 | 7 8 8 8 8 Most Carried 8 | 5 5 6 8 8 Average Carried 5 | 4 5 5 6 7 Final Capacity 8 | 8 8 8 8 8 Final Carried 8 | 5 5 6 6 8 Class Distribution -------------------- 50% | Mutant 32% | Skirmisher 16% | Scavenger-Skirmisher Dominant Class ---------------- Mutant | -10/Materials Mutant | -10/Mines Skirmisher | -9/Materials Scavenger-Skirmisher | -8/Materials Resources | -11 -10 -10 -9 -8 ----------- Run | Yrd Mat Min Mat Mat Matter Collected 612 | 314 . 52 246 . Remotely . | . . . . . Salvage Created 710 | 287 . 172 246 5 Parts 61 | 20 . 9 32 . Haulers Intercepted . | . . . . . Recyclers Shooed 4 | . . 3 1 . Parts Field Recycled . | . . . . . Retrieved Matter . | . . . . . Parts Self-Destructed . | . . . . . Prevented . | . . . . . Kills | -11 -10 -10 -9 -8 ------- Run | Yrd Mat Min Mat Mat Combat Hostiles Destroyed 12 | . . . 11 1 Guns 11 | . . . 11 . Classes Destroyed 8 | 3 . 1 3 1 Worker 7 | 4 . 2 1 . Builder 2 | . . 1 1 . Tunneler 7 | 7 . . . . Recycler 3 | 1 . 2 . . Watcher 1 | . . . 1 . Swarmer 8 | . . . 8 . Grunt 3 | . . . 3 . Hunter 1 | . . . . 1 Best Kill Streak 10 | 2 . 4 10 1 Combat Bots Only 10 | . . . 10 1 Max Kills in Single Turn 2 | 1 . 1 2 1 Gunslinging 1 | . . . 1 . Exploded . | . . . . . Melee . | . . . . . Uniques/NPCs Destroyed . | . . . . . Combat | -11 -10 -10 -9 -8 -------- Run | Yrd Mat Min Mat Mat Hostile Shots Fired 109 | . . . 71 38 Missed 14 | . . . 9 5 Damage Taken 1440 | . . . 736 704 Core 380 | . . . 257 123 Absorbed by Shields . | . . . . . Core Remaining (%) 78 | 100 . 100 35 . Volleys Fired 118 | 41 6 16 44 11 Largest 4 | 2 1 2 4 1 Hottest 155 | 70 100 120 155 100 Shots Fired 217 | 82 6 26 92 11 Gun 174 | 82 . 17 75 . Cannon . | . . . . . Launcher . | . . . . . Special 43 | . 6 9 17 11 Kinetic 99 | 41 . 15 43 . Thermal 102 | 41 6 11 33 11 Explosive . | . . . . . Electromagnetic 16 | . . . 16 . Robot Hit Streak 8 | 6 . 8 8 . Robot Miss Streak 4 | 3 . 4 4 1 Penetration Max . | . . . . . Secondary Targets 6 | . . . 6 . Max Gunslinging Chain 2 | . . . 2 . Shots Hit Robots 109 | 46 . 16 47 . Core Hits 45 | 17 . 9 19 . Critical Kills . | . . . . . Critical Parts Destroyed . | . . . . . Critical Strikes 2 | 1 . . 1 . Burn 2 | 1 . . 1 . Melee Attacks . | . . . . . Impact . | . . . . . Slashing . | . . . . . Piercing . | . . . . . Sneak Attacks . | . . . . . Combat Hostiles . | . . . . . Follow-up Attacks . | . . . . . Damage Inflicted 1224 | 477 . 179 536 32 Guns 1047 | 477 . 107 463 . Cannons . | . . . . . Explosions . | . . . . . Melee . | . . . . . Ramming 33 | . . . 1 32 Kinetic 494 | 202 . 81 211 . Thermal 571 | 275 . 98 198 . Explosive . | . . . . . Electromagnetic 126 | . . . 126 . Impact . | . . . . . Slashing . | . . . . . Piercing . | . . . . . Highest Corruption 2 | . . . . 2 Average Corruption 2 | . . . . 2 Corruption Purged . | . . . . . Corruption Blocked . | . . . . . Effects 1 | . . . . 1 Message Errors 1 | . . . . 1 Overload Shots . | . . . . . Overflow Damage . | . . . . . Projectiles . | . . . . . Explosions . | . . . . . Melee . | . . . . . Knockbacks 1 | . . . . 1 Impact 1 | . . . . 1 Kinetic . | . . . . . Secondary . | . . . . . Self-Inflicted Damage . | . . . . . Shots . | . . . . . Rammed 1 | . . . 1 . Targets Rammed 19 | . . . 1 18 Kicked 18 | . . . . 18 Crushed . | . . . . . Highest Temperature 657 | 90 40 60 657 . Average Temperature 100 | 32 17 22 205 . Received Heat Transfer 183 | . . . 66 117 Effects 18 | . . . 18 . Shutdowns 4 | . . . 4 . Energy Bleed 2 | . . . 2 . Matter Decay 5 | . . . 5 . Short Circuit 1 | . . . 1 . Damage (minor) 3 | . . . 3 . Damage (core) 3 | . . . 3 . Siege Activations . | . . . . . Robots Corrupted 1 | . . . . 1 Combat Hostiles 1 | . . . . 1 Parts Fried . | . . . . . Impact Corruptions 1 | . . . . 1 Robots Melted . | . . . . . Combat Hostiles . | . . . . . Parts Melted 2 | 2 . . . . Heat Transferred 1706 | 888 . 224 594 . Parts Sabotaged . | . . . . . Parts Stolen . | . . . . . Parts Stripped . | . . . . . Power Chain Reactions . | . . . . . Alert | -11 -10 -10 -9 -8 ------- Run | Yrd Mat Min Mat Mat Peak Influence 269 | 55 17 36 269 43 Initial 32 | . 3 6 13 32 Average 50 | 18 9 22 106 32 Maximum Alert Level 1 | . . . 1 . Low Security (%) 89 | 100 100 100 69 100 Level 1 10 | . . . 30 . Level 2 . | . . . . . Level 3 . | . . . . . Level 4 . | . . . . . Level 5 . | . . . . . High Security . | . . . . . Max Security . | . . . . . Squads Dispatched 1 | . . . . 1 Investigation . | . . . . . Extermination . | . . . . . Reinforcement 1 | . . . . 1 Assault . | . . . . . Garrison . | . . . . . Intercept . | . . . . . Searches Triggered . | . . . . . Construction Impeded 1 | . . . . 1 Haulers Reinforced . | . . . . . Active Scanning Responses . | . . . . . Cargo Convoy Interrupts . | . . . . . Stealth | -11 -10 -10 -9 -8 --------- Run | Yrd Mat Min Mat Mat Distress Signals 1 | . . . . 1 Communications Jammed . | . . . . . Distress Signals . | . . . . . Times Spotted 17 | . . . 13 4 Peak Tracking Total 8 | . 1 . 8 4 Tactical Retreats . | . . . . . Traps | -11 -10 -10 -9 -8 ------- Run | Yrd Mat Min Mat Mat Traps Triggered . | . . . . . Indirectly . | . . . . . Trap Hack Attempts . | . . . . . Triggered . | . . . . . Disarmed . | . . . . . Reprogrammed . | . . . . . Reused . | . . . . . Traps Extracted . | . . . . . Installed . | . . . . . Triggered . | . . . . . Machines | -11 -10 -10 -9 -8 ---------- Run | Yrd Mat Min Mat Mat Machines Disabled 1 | . . . 1 . Max in Single Turn 1 | . . . 1 . Machines Repaired . | . . . . . Machines Dismantled . | . . . . . Machines Sabotaged . | . . . . . Overloaded Fab Kills . | . . . . . Hacking | -11 -10 -10 -9 -8 --------- Run | Yrd Mat Min Mat Mat Machines Accessed 4 | . 1 . 2 1 Terminals 4 | . 1 . 2 1 Fabricators . | . . . . . Repair Stations . | . . . . . Recycling Units . | . . . . . Scanalyzers . | . . . . . Garrison Access . | . . . . . Total Hacks 12 | . 3 . 6 3 Successful 4 | . 2 . 1 1 Failed 8 | . 1 . 5 2 Catastrophic 1 | . . . 1 . Database Lockouts . | . . . . . Manual 11 | . 3 . 6 2 Terminals 12 | . 3 . 6 3 Fabricators . | . . . . . Repair Stations . | . . . . . Recycling Units . | . . . . . Scanalyzers . | . . . . . Garrison Access . | . . . . . Terminal Hacks 2 | . 1 . . 1 Level Access Points 1 | . 1 . . . Alert Level 1 | . . . . 1 Fabricator Hacks . | . . . . . Repair Station Hacks . | . . . . . Recycling Unit Hacks . | . . . . . Scanalyzer . | . . . . . Garrison Access Hacks . | . . . . . Unauthorized Hacks 2 | . 1 . 1 . Terminals 2 | . 1 . 1 . Operators 2 | . 1 . 1 . Fabricators . | . . . . . Repair Stations . | . . . . . Recycling Units . | . . . . . Scanalyzers . | . . . . . Garrison Access . | . . . . . Data Cores Recovered . | . . . . . Used . | . . . . . Hacking Detections 4 | . 1 . 2 1 Full Trace Events . | . . . . . Feedback Events . | . . . . . Feedback Blocked . | . . . . . Robot Schematics Acquired . | . . . . . Robots Built . | . . . . . Authchips . | . . . . . Time . | . . . . . Total Robot Build Rating . | . . . . . Part Schematics Acquired . | . . . . . Parts Built . | . . . . . Authchips . | . . . . . Time . | . . . . . Total Part Build Rating . | . . . . . Parts Repaired . | . . . . . Time . | . . . . . Parts Recycled . | . . . . . Recycled Matter . | . . . . . Retrieved Matter . | . . . . . Retrieved Components . | . . . . . Parts Scanalyzed . | . . . . . Part Schematics Acquired . | . . . . . Parts Damaged . | . . . . . Bothacking | -11 -10 -10 -9 -8 ------------ Run | Yrd Mat Min Mat Mat Used RIF Installer . | . . . . . Robots Hacked . | . . . . . Non-combat . | . . . . . Combat . | . . . . . Robot Hacks Applied . | . . . . . Relay Couplers Released . | . . . . . Fabnet Peak Effective % . | . . . . . Robots Rewired . | . . . . . Allies Hacked . | . . . . . Hacks Repelled . | . . . . . Allies | -11 -10 -10 -9 -8 -------- Run | Yrd Mat Min Mat Mat Total Allies . | . . . . . Largest Group . | . . . . . Highest-Rated Group . | . . . . . Highest-Rated Ally . | . . . . . Total Orders . | . . . . . Ally Attacks . | . . . . . Total Damage . | . . . . . Kills . | . . . . . Allies Corrupted . | . . . . . Allies Melted . | . . . . . Intel | -11 -10 -10 -9 -8 ------- Run | Yrd Mat Min Mat Mat Robot Analysis Total . | . . . . . Derelict Logs Recovered . | . . . . . Drone Launches . | . . . . . Drone Recoveries . | . . . . . Exploration | -11 -10 -10 -9 -8 ------------- Run | Yrd Mat Min Mat Mat Turns Passed 1625 | 513 106 186 550 270 Spaces Moved 694 | 244 51 79 221 99 Core 12 | 12 . . . . Treads 599 | 232 51 79 221 16 Legs 83 | . . . . 83 Wheels . | . . . . . Hover . | . . . . . Flight . | . . . . . Fastest Speed 50 | 50 160 160 160 120 Average Speed 161 | 155 160 160 160 183 Slowest Speed 190 | 160 160 160 160 190 Overloaded Moves . | . . . . . Propulsion Burnouts . | . . . . . Robots Hopped . | . . . . . Cave-ins Triggered 1 | . . . . 1 Exploration Rate (%) 13 | 16 14 12 18 6 Regions Visited 4 Branch Regions 1 Pre-discovered Areas . | . . . . . Known Exits Taken 2 | . . 1 1 . Unknown Exits Taken 2 | 1 1 . . . Scrap Searched . | . . . . . Spaces Dug 27 | . 5 . 12 10 Terrain Destroyed 34 | . 5 5 13 11 Melee . | . . . . . Projectile 34 | . 5 5 13 11 AOE . | . . . . . Terrain Rammed . | . . . . . Walls Destroyed . | . . . . . Machines Disabled . | . . . . . Actions | -11 -10 -10 -9 -8 --------- Run | Yrd Mat Min Mat Mat Total 914 | 302 57 97 313 145 Wait 28 | . . . 28 . Move 690 | 243 50 78 220 99 Hop . | . . . . . Pick Up 25 | 10 . 1 7 7 Fast Attach 3 | 2 . . . 1 Attach 13 | 5 . . 5 3 Detach . | . . . . . Swap 12 | 1 1 2 5 3 Drop 6 | . . . 3 3 Fire 118 | 41 6 16 44 11 Melee . | . . . . . Ram . | . . . . . Kick 18 | . . . . 18 Crush 1 | . . . 1 . Escape Stasis . | . . . . . Rewire . | . . . . . Trap . | . . . . . Miscellaneous . | . . . . . Route ------- -11/Scrapyard -10/Materials (discovered 4 exits: Mat x3 / [*Min]) -10/Mines -9/Materials -8/Materials History --------- Turn | Location | Event 9 | -11/Scrapyard | Discovered new exit (range 15) 514 | -11/Scrapyard | Entered Materials 515 | -10/Materials | Build established: Mutant 591 | -10/Materials | Identified exit to Materials 607 | -10/Materials | Discovered new exit (range 6) 620 | -10/Materials | Entered Mines 656 | -10/Mines | Discovered exit to Materials (range 16) 806 | -10/Mines | Entered Materials 806 | -9/Materials | Evolved 2 slots: Weapon x2 1042 | -9/Materials | Core integrity fell below 50% 1072 | -9/Materials | Destroyed 10 combat bots 1074 | -9/Materials | Lost 3 parts (1n2w) 1316 | -9/Materials | Discovered new exit (range 3) 1323 | -9/Materials | Identified exit to Materials 1356 | -9/Materials | Entered another Materials area 1356 | -8/Materials | Evolved 2 slots: Utility x2 1587 | -8/Materials | Crushed by falling debris 1626 | -8/Materials | Self-destructed Last Messages --------------- 01611_ Kicked H-55 Commando. 01612_ Penetrated by Slug. 01613_ Lgt. Assault Rifle destroyed. 01613_ System Shield destroyed. 01613_ Kicked H-55 Commando. 01615_ /T OBC:ZB<7ZQMY/MA#II1F 7IN 01615_ Penetrated by Slug. 01616_ Kicked H-55 Commando. 01616_ Lgt. Treads destroyed. 01616_ Critical hit (Burn: +37). 01617_ Kicked H-55 Commando. 01619_ Assault Cannon destroyed. 01619_ Kicked H-55 Commando. 01622_ Destroyed Targeting Computer. 01622_ H-55 Commando system corrupted by crushing effect. 01622_ H-55 Commando knocked back. 01623_ H-55 Commando system terminally corrupted. 01625_ Critical hit (Burn: +37). Map ----- +----------------------------------------------------+ | ???????????????????????? ?????????????????? | | ???????????????????????? ?????????????????? | | ?????????????????????? # ??"??????????????? | | ?????????????????????? # ? ???????????????? | | ?????????????????????? # ??? ?????????????? | | ??????????????????????## ?????????????????? | | ?????????????????????? # ???????????????? | | ?????????????????????? # ??????? ???????? | | ??????????????????????## ##?#?????????????? | | ?????????????????????? # # ??????????? ???? | | ???????????????????????? + ???????????????? | | ?????????????? / ??????# # ???????????????? | | ?????????????? # ??????+ # ??????????? ???? | | ?????????????? # ?????## # ? ??? ?????????? | | ????????????????? !????## # ?? ???????????? | | ?????????????????? ??## ############?????? | | ????????????????? """ ## ############?????? | | ???????????????? """ ## # ##?????? | | ?????????????? # """ + # ##???#?? | | ?????????????? # ##Y# ###???## | | ?????????????? ##### #### # ##?????? | | ?????????????? ####### ## # "" !! ##???#?? | | ????????????????#? ?? #%# "T !! ##????#? | | ??????????????????????? #%# "" ##?????? | | ??????????????????????? # # ######?? | | ??????????????????????? #@##+############??? | | ??????????????????????? #r ##??? | | ??????????????????????? Y ##??? | | ????????????????? ????? # a u ##### | | ??????????????????????? #a #######+######## | | ????????????????? ????? # ###### ## | | ??????????????????????? # ##??## ## | | ??????????????????????? # ##??## ## | | ???????????????????????## ###?## ## | | ??????????????????????### ##??## ## | | ?????????????????????? # ##??## ## | | ??????????????????????? # ##??## ! ## | | ??????????????????????? # ##??##! ## | | ??????????????????????? # ##?###! ## | | ??????????????????????? + ##??############ | | ??????????????????????? # ##?############# | | ???????????????????????????????????#???????? | | ?????????????????????????????????????????#?? | | ????????????????????????????????????????#??? | | ??????????????????????????????????#????????? | | ???????????????????????????????????????????? | | ???????????????????????????????????????????# | | ???????????????????????????????????????????? | | ???????????????????????????????????? ??????? | | ??????????????????????????????????? ???????? | +----------------------------------------------------+ Best States ------------- Heat Dissipation 31 Energy Generation 10 Energy Capacity 250 Matter Stores 300 Matter Capacity 300 Sight Range 16 Terrain Scan Range 16 Terrain Scan Density 10 Evasion (%) 50 Recoil Reduction 2 Defensive Hacking 10 Item Schematics ----------------- None Robot Schematics ------------------ None Fabricated ------------ Nothing Alien Tech Used ----------------- None Achievements -------------- None Challenges ------------ None Game ------ Seed MiningAntimissileTrident Manual? 0 Play Time 00:16:48 Cumulative 26.8 hours Start 2024.11.10 @ 16:51:11 End 2024.11.10 @ 17:08:01 Sessions 1 Manual Loads 0 Difficulty Rogue Special Mode None Game No. 60 Rogue 60 Adventurer 0 Explorer 0 Win Type - Total 0 Types 0/0/0/0/0/0/0/0/0 Lore% 12 Gallery% 21 Achievement% 21 Wizard Run 0 Options --------- Layout 1 ASCII 0 Keyboard 0 Movement Arrows Keybinds 0 Fullscreen 1 Font 24/Smallcaps Map View 50x40 Zoom Use 0% Tactical HUD 1 Map Filters NONE Filters NONE Steam 1 RUN: 86a83b13-58e6-43cd-b9cd-e766608ebd02